bitfinex/quotes_SOLUSD_20260311
["timestamp","ask_amount","ask_price","bid_price","bid_amount"]
[1773254701897,1.50770879,87.337,87.288,0.6152041]
[1773254702103,1.50770879,87.329,87.291,0.6152041]
[1773254702297,1.50770879,87.327,87.291,0.6152041]
[1773254703777,1.50770879,87.319,87.28,7.33995054]
[1773254703977,1.50770879,87.319,87.282,11.45703408]
[1773254704186,1.50770879,87.317,87.28,7.33995054]
[1773254704398,1.50770879,87.309,87.273,2.92]
[1773254705006,1.50770879,87.309,87.27,7.33995054]
[1773254705506,1.50770879,87.307,87.27,7.33995054]
[1773254705699,1.50770879,87.297,87.263,11.45952143]
[1773254706085,1.50770879,87.297,87.27,2.94077945]
[1773254706404,1.50770879,87.327,87.291,0.61529824]
[1773254706702,45.77770012,87.379,87.263,11.45952143]
[1773254706703,1.50770879,87.335,87.31,2.94077945]
[1773254707402,1.50770879,87.335,87.31,3.55610056]
[1773254707701,1.50770879,87.347,87.32,2.94077945]
[1773254707886,1.50770879,87.345,87.321,11.45199894]
[1773254708802,1.50770879,87.361,87.331,0.61534371]
[1773254709007,1.50770879,87.361,87.34,2.94077945]
[1773254709805,1.50770879,87.361,87.305,0.14216157]
[1773254709990,0.1,87.38,87.271,0.61538813]
[1773254709991,1.50770879,87.319,87.271,0.61538813]
[1773254710189,1.50770879,87.326,87.29,2.94077945]
[1773254710491,1.50770879,87.326,87.291,0.61538813]
[1773254710904,1.50770879,87.326,87.3,2.94077945]
[1773254711602,1.50770879,87.326,87.3,3.55618942]
[1773254712204,1.43120484,87.339,87.29,2.94077945]
[1773254712205,1.50770879,87.324,87.29,2.94077945]
[1773254713589,1.50770879,87.299,87.231,0.61545288]
[1773254713801,5.8815589,87.3,87.197,45.8731166]
[1773254713802,1.50770879,87.269,87.23,2.94077945]
[1773254713994,1.50770879,87.269,87.241,11.46250042]
[1773254714209,12.96656826,87.269,87.241,11.46250042]
[1773254715508,11.45885947,87.269,87.241,11.46250042]
[1773254715700,1.50770879,87.268,87.241,11.46250042]
[1773254717715,1.50770879,87.267,87.241,11.46250042]
[1773254718009,1.50770879,87.267,87.24,0.2]
[1773254719304,1.50770879,87.259,87.24,0.2]
[1773254720037,11.4600366,87.26,87.24,0.2]
[1773254720038,1.49123454,87.257,87.24,0.2]
[1773254720895,1.49123454,87.257,87.22,7.35624402]
[1773254721214,1.49123454,87.257,87.221,11.46512881]
[1773254721596,1.49123454,87.273,87.24,7.3581293]
[1773254721802,1.49123454,87.279,87.25,7.3581293]
[1773254722908,1.49123454,87.274,87.246,11.46178309]
[1773254723412,1.49123454,87.302,87.261,0.61567197]
[1773254723608,61.84,87.332,87.281,0.61567197]
[1773254723609,1.49123454,87.318,87.281,0.61567197]
[1773254723804,1.49123454,87.318,87.29,7.3581293]
[1773254724004,1.49123454,87.316,87.29,7.3581293]
[1773254724318,1.49123454,87.316,87.28,7.3581293]
[1773254725121,1.49123454,87.314,87.281,11.45724728]
[1773254725511,1.49123454,87.314,87.29,7.3581293]
[1773254725819,1.49123454,87.329,87.3,7.3581293]
[1773254729423,1.49123454,87.327,87.301,11.45462251]
[1773254731007,1.49123454,87.335,87.31,7.3581293]
[1773254731423,1.49123454,87.33,87.292,0.61581471]
[1773254731617,1.49123454,87.329,87.3,7.3581293]
[1773254733003,1.49123454,87.329,87.31,7.3581293]
[1773254733422,1.49123454,87.327,87.301,11.45462251]
[1773254736101,1.49123454,87.325,87.301,11.45462251]
[1773254736308,1.49123454,87.319,87.28,7.3581293]
[1773254737731,1.49123454,87.319,87.29,7.3581293]
[1773254737925,1.49123454,87.325,87.3,7.3581293]
[1773254738119,1.49123454,87.323,87.3,7.3581293]
[1773254738630,1.49123454,87.323,87.31,7.3581293]
[1773254738832,1.49123454,87.323,87.3,7.3581293]
[1773254740431,12.94310233,87.322,87.301,11.45462251]
[1773254740645,1.49123454,87.322,87.301,11.45462251]
[1773254741640,1.49123454,87.322,87.3,2.93827262]
[1773254742444,12.86767642,87.33,87.31,2.93827262]
[1773254742742,1.41685188,87.329,87.31,2.93827262]
[1773254743930,3.31999987,87.331,87.32,2.93827262]
[1773254745447,11.45008613,87.336,87.32,2.93827262]
[1773254745943,11.45008613,87.336,87.311,11.45331057]
[1773254746946,1.41685188,87.335,87.307,11.45383531]
[1773254747144,1.41685188,87.335,87.31,2.93827262]
[1773254747357,1.41685188,87.335,87.32,2.93827262]
[1773254749644,1.41685188,87.335,87.31,2.93827262]
[1773254749945,1.38269422,87.333,87.31,2.93827262]
[1773254750141,1.38269422,87.34,87.32,2.93827262]
[1773254750341,1.38269422,87.34,87.309,11.45357294]
[1773254750342,11.44729289,87.357,87.33,3.55440488]
[1773254750652,11.44714851,87.358,87.34,2.93827262]
[1773254750944,12.82984273,87.358,87.33,3.55440488]
[1773254751244,1.38269422,87.357,87.33,3.55440488]
[1773254751454,1.38269422,87.357,87.34,2.93827262]
[1773254752649,11.44741059,87.356,87.34,2.93827262]
[1773254752935,12.83010481,87.356,87.34,2.93827262]
[1773254753121,1.38269422,87.355,87.34,2.93827262]
[1773254755245,1.38269422,87.353,87.331,11.45062507]
[1773254755446,1.38269422,87.353,87.34,2.93827262]
[1773254755743,1.38269422,87.353,87.33,2.93827262]
[1773254755940,1.38269422,87.351,87.331,11.45068761]
[1773254757145,11.4474551,87.356,87.34,2.93827262]
[1773254757344,12.83023586,87.355,87.34,2.93827262]
[1773254757564,1.38269422,87.354,87.331,11.45068761]
[1773254758547,1.38269422,87.352,87.311,28.63301971]
[1773254758747,1.38269422,87.352,87.32,2.93827262]
[1773254759953,1.38269422,87.352,87.33,2.93827262]
[1773254760533,1.38269422,87.35,87.33,2.93827262]
[1773254761948,1.38269422,87.357,87.331,0.61628198]
[1773254762135,4.35072978,87.368,87.325,11.45147437]
[1773254762136,1.38269422,87.366,87.326,0.61628198]
[1773254762335,1.38269422,87.366,87.33,2.93827262]
[1773254762549,1.38269422,87.362,87.321,11.45199894]
[1773254764148,1.38269422,87.36,87.321,11.45199894]
[1773254764948,2.92,87.361,87.321,11.45199894]
[1773254764949,1.38269422,87.358,87.321,11.45199894]
[1773254765731,1.38269422,87.358,87.33,2.93827262]
[1773254765934,1.38269422,87.356,87.33,2.93827262]
[1773254766347,1.38269422,87.356,87.326,0.61632745]
[1773254766348,1.38269422,87.356,87.34,2.93827262]
[1773254766555,1.38269422,87.356,87.33,2.93827262]
[1773254768250,1.38269422,87.354,87.33,2.93827262]
[1773254768757,11.44701744,87.36,87.34,2.93827262]
[1773254768958,1.38269422,87.359,87.34,2.93827262]
[1773254769853,12.82984273,87.358,87.34,2.93827262]
[1773254770040,1.38269422,87.357,87.34,2.93827262]
[1773254770956,1.38269422,87.357,87.315,2.92]
[1773254770957,11.44578823,87.369,87.35,2.93827262]
[1773254771153,1.38269422,87.368,87.35,2.93827262]
[1773254772752,11.4459693,87.367,87.35,2.93827262]
[1773254772956,1.38269422,87.367,87.35,14.38637703]
[1773254773161,2.92,87.382,87.35,14.38637703]
[1773254773162,1.52416318,87.431,87.361,0.14216157]
[1773254773455,1.52416318,87.431,87.41,2.93827262]
[1773254773646,11.4377216,87.43,87.42,2.93827262]
[1773254773849,1.52416318,87.431,87.42,2.93827262]
[1773254774154,0.1,87.44,87.42,2.93827262]
[1773254774544,11.43654433,87.439,87.42,2.93827262]
[1773254774851,0.1,87.44,87.42,2.93827262]
[1773254775557,0.1,87.44,87.388,2.92]
[1773254775558,0.1,87.45,87.431,1.40050701]
[1773254775763,0.1,87.45,87.44,0.09664294]
[1773254775940,0.1,87.45,87.431,1.40050701]
[1773254776460,1.38269422,87.449,87.42,2.93827262]
[1773254776859,11.4353673,87.448,87.43,2.76077363]
[1773254777060,1.38269422,87.447,87.43,2.93827262]
[1773254777847,1.38269422,87.447,87.413,1.40050701]
[1773254778057,1.38269422,87.447,87.42,2.93827262]
[1773254778861,11.43562884,87.446,87.42,2.93827262]
[1773254779062,1.38269422,87.445,87.42,2.93827262]
[1773254780755,1.47885238,87.443,87.42,2.93827262]
[1773254782852,1.47885238,87.441,87.42,2.93827262]
[1773254783367,0.1,87.45,87.431,1.52498538]
[1773254783568,0.1,87.47,87.441,1.52498538]
[1773254783769,0.1,87.47,87.417,11.43930199]
[1773254783770,11.43293973,87.467,87.46,2.92824885]
[1773254784058,28.57902015,87.477,87.46,2.92824885]
[1773254784059,1.47885238,87.489,87.461,1.52498538]
[1773254784260,1.47885238,87.489,87.46,2.92824885]
[1773254785353,1.47885238,87.487,87.46,2.92824885]
[1773254785860,11.43013899,87.488,87.44,2.92824885]
[1773254785861,0.14216157,87.478,87.44,2.92824885]
[1773254786064,1.47885238,87.476,87.44,2.92824885]
[1773254786271,1.47885238,87.476,87.435,1.52498538]
[1773254786272,1.47885238,87.476,87.45,2.92824885]
[1773254787462,1.47885238,87.474,87.45,2.92824885]
[1773254787662,11.43000834,87.489,87.461,1.52498538]
[1773254787965,11.43000834,87.489,87.47,2.92824885]
[1773254788164,11.43000834,87.489,87.461,1.52498538]
[1773254788165,11.43000834,87.489,87.48,2.92824885]
[1773254788848,11.42907174,87.497,87.48,2.92824885]
[1773254789060,1.47885238,87.496,87.471,1.52498538]
[1773254789848,1.47885238,87.494,87.47,2.92824885]
[1773254791551,1.47885238,87.494,87.47,7.31710608]
[1773254792268,11.42948578,87.493,87.47,7.31710608]
[1773254792467,11.42948578,87.493,87.48,7.31710608]
[1773254792848,1.47885238,87.492,87.47,7.31710608]
[1773254793154,1.47885238,87.492,87.459,1.52498538]
[1773254793155,1.47885238,87.492,87.46,7.31710608]
[1773254794252,40.01005967,87.478,87.44,7.31710608]
[1773254794572,40.01005967,87.478,87.379,45.77734606]
[1773254794573,1.47885238,87.459,87.407,1.52498538]
[1773254794753,1.47885238,87.459,87.36,52.65629196]
[1773254794754,1.47885238,87.437,87.4,7.31710608]
[1773254794957,1.47885238,87.435,87.4,7.31710608]
[1773254795358,1.47885238,87.435,87.41,7.31710608]
[1773254795551,1.47885238,87.435,87.401,1.52498538]
[1773254795767,2.92,87.436,87.42,7.31710608]
[1773254797058,12.914612,87.445,87.42,7.31710608]
[1773254798469,1.47885238,87.444,87.411,1.52498538]
[1773254798773,1.47885238,87.444,87.4,1.52498538]
[1773254799067,1.47885238,87.444,87.41,7.31710608]
[1773254799468,1.47885238,87.444,87.411,1.52498538]
[1773254800671,1.43142679,87.442,87.41,7.31710608]
[1773254800863,1.43142679,87.439,87.402,1.52237587]
[1773254801678,1.43142679,87.439,87.41,7.31710608]
[1773254802477,11.43602117,87.443,87.42,7.31710608]
[1773254802772,7.31710608,87.46,87.42,7.31710608]
[1773254802773,1.43142679,87.474,87.431,1.52237587]
[1773254802975,11.43209904,87.473,87.45,7.31710608]
[1773254803168,1.43142679,87.472,87.45,7.31710608]
[1773254803358,1.43142679,87.472,87.44,7.31710608]
[1773254804375,1.43142679,87.469,87.434,1.52237587]
[1773254804764,1.43142679,87.467,87.43,7.31710608]
[1773254804971,1.43142679,87.465,87.43,7.31710608]
[1773254805271,1.43142679,87.465,87.44,8.83948195]
[1773254805477,11.43275254,87.468,87.44,8.83948195]
[1773254805478,11.43275254,87.468,87.441,1.52237587]
[1773254805672,11.43275254,87.468,87.431,1.52237587]
[1773254805673,1.43142679,87.467,87.431,1.52237587]
[1773254806874,1.43142679,87.465,87.432,11.43745996]
[1773254808777,1.43142679,87.463,87.432,11.43745996]
[1773254809379,1.43142679,87.449,87.41,7.31710608]
[1773254809578,1.43142679,87.448,87.41,7.31710608]
[1773254809979,1.43142679,87.448,87.411,1.43051096]
[1773254810359,40.01646391,87.464,87.44,8.74761704]
[1773254810360,11.4332754,87.464,87.44,8.74761704]
[1773254810561,11.4332754,87.464,87.43,7.31710608]
[1773254810770,1.39127376,87.463,87.431,1.43051096]
[1773254811172,1.39127376,87.461,87.424,11.43843265]
[1773254811374,1.39127376,87.461,87.424,12.86894361]
[1773254811674,1.39127376,87.461,87.425,1.43051096]
[1773254814785,1.39127376,87.459,87.43,7.31710608]
[1773254816700,40.01829406,87.46,87.42,7.31710608]
[1773254816701,1.39127376,87.457,87.42,7.31710608]
[1773254816887,1.39127376,87.449,87.411,1.43051096]
[1773254817086,1.39127376,87.439,87.4,7.31710608]
[1773254817293,1.39127376,87.439,87.401,11.44151668]
[1773254817494,1.39127376,87.439,87.41,7.31710608]
[1773254818000,1.42940456,87.449,87.421,1.43051096]
[1773254818186,11.43432125,87.456,87.431,1.43051096]
[1773254818702,12.82559501,87.456,87.431,1.43051096]
[1773254820901,12.82559501,87.456,87.404,0.60523364]
[1773254820902,11.43236043,87.471,87.441,1.43051096]
[1773254821089,12.82363419,87.471,87.442,11.43615196]
[1773254821406,12.82363419,87.471,87.443,1.43051096]
[1773254821613,1.39127376,87.47,87.443,1.43051096]
[1773254821899,1.39127376,87.47,87.44,7.31710608]
[1773254822588,1.39127376,87.47,87.441,11.43628275]
[1773254823009,12.8238956,87.469,87.441,12.86679371]
[1773254823210,1.39127376,87.468,87.441,12.86679371]
[1773254823712,1.39127376,87.468,87.441,1.43051096]
[1773254824097,1.39127376,87.468,87.44,7.31710608]
[1773254824298,1.39127376,87.466,87.43,7.31710608]
[1773254824508,1.39127376,87.466,87.43,18.75479259]
[1773254824807,1.39127376,87.466,87.43,20.18530355]
[1773254825009,11.43314468,87.465,87.432,11.43745996]
[1773254825313,11.43314468,87.465,87.441,1.43051096]
[1773254825897,11.43259173,87.47,87.45,7.31710608]
[1773254826614,12.82386549,87.47,87.446,1.43051096]
[1773254827110,11.43259173,87.47,87.446,1.43051096]
[1773254827290,1.39127376,87.469,87.446,1.43051096]
[1773254827708,1.39127376,87.467,87.43,7.31710608]
[1773254827905,1.39127376,87.465,87.421,1.43051096]
[1773254828305,1.39127376,87.463,87.421,1.43051096]
[1773254828815,1.39127376,87.461,87.422,12.86927923]
[1773254829517,1.39127376,87.461,87.423,1.43051096]
[1773254830112,40.01737897,87.462,87.401,11.44151668]
[1773254830113,1.39127376,87.439,87.401,11.44151668]
[1773254830307,1.39127376,87.439,87.411,1.43051096]
[1773254831015,11.43667512,87.438,87.413,1.43051096]
[1773254831405,1.39127376,87.437,87.413,1.43051096]
[1773254832414,11.434452,87.455,87.431,1.43051096]
[1773254832918,12.8252028,87.459,87.431,1.43051096]
[1773254833116,1.39127376,87.458,87.431,1.43051096]
[1773254834918,11.43419051,87.457,87.431,1.43051096]
[1773254835223,1.39127376,87.456,87.431,1.43051096]
[1773254836016,1.39127376,87.456,87.422,1.43051096]
[1773254836727,2.92982501,87.45,87.41,2.92982501]
[1773254836900,1.39127376,87.449,87.411,11.44020775]
[1773254837419,1.39127376,87.447,87.411,11.44020775]
[1773254837620,1.39127376,87.447,87.411,12.87071871]
[1773254838218,1.39127376,87.447,87.412,1.43051096]
[1773254838809,1.39127376,87.457,87.421,1.43051096]
[1773254839014,1.39127376,87.455,87.421,1.43051096]
[1773254839718,1.39127376,87.453,87.421,1.43051096]
[1773254840220,1.39127376,87.453,87.411,1.39150942]
[1773254841409,1.39127376,87.453,87.41,2.92982501]
[1773254841410,1.46176007,87.451,87.414,1.39150942]
[1773254841804,1.46176007,87.451,87.421,1.39150942]
[1773254842400,1.46176007,87.449,87.421,1.39150942]
[1773254843519,1.46176007,87.447,87.414,1.39150942]
[1773254845719,1.46176007,87.445,87.41,2.93089729]
[1773254846212,1.46176007,87.439,87.399,11.44166012]
[1773254846411,1.46176007,87.419,87.376,0.60595559]
[1773254846611,2.93089729,87.41,87.376,11.44479033]
[1773254846925,1.46176007,87.409,87.377,1.39150942]
[1773254847507,1.46176007,87.409,87.381,1.39150942]
[1773254847727,0.06618309,87.412,87.392,1.39150942]
[1773254849832,0.06618309,87.412,87.393,11.44256404]
[1773254850030,0.06618309,87.412,87.394,1.39150942]
[1773254850404,0.06618309,87.412,87.401,1.39150942]
[1773254850628,11.43850658,87.424,87.401,1.39150942]
[1773254851526,11.43802108,87.428,87.401,1.39150942]
[1773254852031,1.46176007,87.43,87.402,11.44138578]
[1773254853137,1.46176007,87.43,87.401,1.39150942]
[1773254853431,1.46176007,87.43,87.402,11.44138578]
[1773254853608,1.46176007,87.43,87.402,12.8328952]
[1773254854916,11.43785242,87.429,87.403,1.39150942]
[1773254855317,11.43602117,87.443,87.421,1.39150942]
[1773254856022,1.46176007,87.459,87.431,1.39150942]
[1773254856222,11.43555145,87.447,87.431,1.39150942]
[1773254856726,1.46176007,87.459,87.431,1.39150942]
[1773254856917,1.46176007,87.459,87.43,2.93089729]
[1773254856918,2.92,87.461,87.433,0.92039881]
[1773254857239,11.43360972,87.462,87.441,0.92039881]
[1773254858529,28.57999595,87.474,87.441,0.92039881]
[1773254858530,12.89451261,87.468,87.441,0.92039881]
[1773254859423,12.89451261,87.468,87.45,2.93089729]
[1773254859618,12.89451261,87.468,87.442,11.43615196]
[1773254859824,1.46176007,87.467,87.442,11.43615196]
[1773254861328,12.81326492,87.466,87.442,11.43615196]
[1773254862428,1.38025095,87.465,87.442,11.43615196]
[1773254862829,11.43301397,87.466,87.45,2.93089729]
[1773254863022,1.52819952,87.493,87.46,2.93089729]
[1773254863234,18.53635158,87.492,87.48,2.93089729]
[1773254863423,18.53635158,87.492,87.47,2.93089729]
[1773254863935,18.53635158,87.492,87.48,2.93089729]
[1773254863936,7.10672109,87.492,87.48,2.93089729]
[1773254866232,7.10672109,87.492,87.48,14.3619916]
[1773254866432,11.42765721,87.507,87.48,14.3619916]
[1773254866639,11.42765721,87.507,87.49,2.93089729]
[1773254868627,12.95585673,87.507,87.49,2.93089729]
[1773254869846,1.52819952,87.507,87.491,11.42974705]
[1773254870182,11.42739603,87.509,87.49,2.93089729]
[1773254871835,0.1,87.51,87.5,2.93089729]
[1773254872236,0.1,87.51,87.49,2.93089729]
[1773254872434,0.1,87.51,87.491,11.42974705]
[1773254872635,1.52819952,87.508,87.49,2.93089729]
[1773254874000,0.1,87.51,87.49,2.93089729]
[1773254874275,11.42739603,87.509,87.49,2.93089729]
[1773254876462,1.52819952,87.509,87.49,2.93089729]
[1773254877365,1.52819952,87.509,87.478,11.43142135]
[1773254877366,1.52819952,87.515,87.5,2.93089729]
[1773254877566,1.52819952,87.526,87.51,2.93089729]
[1773254877764,11.42491545,87.528,87.51,2.93089729]
[1773254878680,0.1,87.53,87.51,2.93089729]
[1773254879182,1.62819952,87.54,87.52,2.93089729]
[1773254879482,0.1,87.54,87.53,2.93089729]
[1773254879675,11.42217501,87.549,87.53,2.93089729]
[1773254880072,0.1,87.55,87.506,39.99721052]
[1773254880279,0.1,87.55,87.54,2.93089729]
[1773254880880,11.42074006,87.56,87.55,2.93089729]
[1773254881186,11.42074006,87.56,87.54,14.35418117]
[1773254881364,1.52819952,87.564,87.55,2.93089729]
[1773254881568,11.41966617,87.569,87.55,2.93089729]
[1773254881960,1.52819952,87.565,87.55,2.93089729]
[1773254882280,12.94841787,87.564,87.55,2.93089729]
[1773254882587,1.52819952,87.564,87.55,2.93089729]
[1773254884178,11.42034877,87.563,87.55,2.93089729]
[1773254884378,1.52819952,87.559,87.52,2.93089729]
[1773254884759,1.52819952,87.557,87.52,2.93089729]
[1773254885480,1.52819952,87.557,87.53,2.93089729]
[1773254885779,1.52819952,87.557,87.508,0.60193854]
[1773254885979,39.97350327,87.558,87.5,2.93089729]
[1773254885980,1.46562794,87.539,87.5,2.93089729]
[1773254886181,1.46562794,87.539,87.497,11.42896327]
[1773254886581,1.46562794,87.539,87.5,2.93089729]
[1773254887087,2.93089729,87.54,87.5,2.93089729]
[1773254887088,1.46562794,87.537,87.501,12.04366918]
[1773254888686,1.46562794,87.535,87.501,12.04366918]
[1773254889190,1.46562794,87.535,87.51,2.93089729]
[1773254889393,1.46562794,87.535,87.502,0.61550236]
[1773254890689,1.46562794,87.533,87.501,11.42844081]
[1773254892283,1.46562794,87.533,87.5,2.93089729]
[1773254892718,1.46562794,87.529,87.49,2.93089729]
[1773254893085,1.46562794,87.529,87.465,0.14216157]
[1773254893086,1.46562794,87.519,87.48,2.93089729]
[1773254893477,1.46562794,87.519,87.351,19.11641871]
[1773254893478,1.46562794,87.509,87.46,2.93089729]
[1773254893690,1.46562794,87.509,87.46,3.53473503]
[1773254893895,2.92,87.515,87.46,3.53473503]
[1773254893896,1.46562794,87.499,87.46,3.53473503]
[1773254894289,1.46562794,87.499,87.461,0.61617498]
[1773254894502,1.46562794,87.499,87.47,2.93089729]
[1773254894701,2.93089729,87.51,87.47,2.93089729]
[1773254894702,1.46562794,87.497,87.47,14.36330748]
[1773254898201,1.46562794,87.495,87.47,11.43241019]
[1773254898793,1.46562794,87.495,87.461,12.05035623]
[1773254899108,1.46562794,87.495,87.461,12.05048098]
[1773254899295,11.4290939,87.496,87.471,0.61681341]
[1773254899487,1.46562794,87.495,87.471,0.61681341]
[1773254900096,1.45578772,87.493,87.46,2.93089729]
[1773254900302,1.45578772,87.489,87.45,2.93089729]
[1773254900503,1.45578772,87.489,87.451,11.43497501]
[1773254900898,1.45578772,87.489,87.452,0.61705864]
[1773254903613,1.45578772,87.487,87.452,0.61705864]
[1773254904110,1.45578772,87.487,87.425,0.74660209]
[1773254904111,1.45578772,87.469,87.432,0.61753241]
[1773254904309,1.45578772,87.477,87.441,0.61753241]
[1773254904696,1.45578772,87.477,87.432,0.60490774]
[1773254904697,2.92815353,87.46,87.43,0.2]
[1773254904905,1.45578772,87.459,87.43,0.2]
[1773254905828,1.45578772,87.457,87.408,0.60511095]
[1773254905992,1.45578772,87.467,87.441,0.61776122]
[1773254906196,1.45578772,87.467,87.418,40.64312987]
[1773254906197,1.45578772,87.462,87.43,2.92815353]
[1773254906915,1.45578772,87.462,87.431,0.61787365]
[1773254908101,1.45578772,87.46,87.432,11.43745996]
[1773254911125,1.45578772,87.474,87.45,2.92815353]
[1773254911428,1.45578772,87.474,87.44,3.54646416]
[1773254912099,1.45578772,87.474,87.44,2.92815353]
[1773254912703,2.92815353,87.47,87.432,40.03110988]
[1773254912917,1.45578772,87.469,87.432,40.03110988]
[1773254913226,1.45578772,87.467,87.432,40.03110988]
[1773254914015,1.45578772,87.473,87.441,0.61862535]
[1773254914325,11.43205104,87.474,87.451,0.61862535]
[1773254914509,1.45578772,87.473,87.45,2.92815353]
[1773254914714,1.45578772,87.473,87.443,0.61862535]
[1773254916012,1.45578772,87.471,87.444,11.43589039]
[1773254917911,1.45578772,87.479,87.451,0.61892936]
[1773254918320,1.45578772,87.479,87.45,2.92815353]
[1773254918917,1.45578772,87.477,87.444,11.43589039]
[1773254921028,1.50055782,87.475,87.444,11.43589039]
[1773254921728,1.50055782,87.475,87.442,0.61941321]
[1773254921930,1.50055782,87.475,87.44,2.92815353]
[1773254922130,1.50055782,87.475,87.441,11.43628275]
[1773254922831,1.50055782,87.475,87.442,0.61950667]
[1773254923130,1.50055782,87.483,87.451,0.61959905]
[1773254923323,1.50055782,87.483,87.45,2.92815353]
[1773254923324,12.92871914,87.504,87.471,0.61959905]
[1773254923523,1.50055782,87.503,87.48,2.92815353]
[1773254923714,1.50055782,87.503,87.471,0.61959905]
[1773254925431,1.50055782,87.501,87.48,2.92815353]
[1773254926324,2.92815353,87.52,87.48,2.92815353]
[1773254926325,1.50055782,87.51,87.481,0.6198699]
[1773254926521,1.50055782,87.509,87.481,0.6198699]
[1773254928340,1.50055782,87.507,87.482,11.43092293]
[1773254930244,1.41253347,87.505,87.482,11.43092293]
[1773254930628,12.83973546,87.511,87.49,2.92815353]
[1773254930949,1.41253347,87.537,87.501,0.62030095]
[1773254931243,1.41253347,87.537,87.51,2.92815353]
[1773254932225,1.41253347,87.535,87.51,2.92815353]
[1773254933436,1.41253347,87.535,87.485,11.43053094]
[1773254933626,1.41253347,87.529,87.49,2.92815353]
[1773254933827,1.41253347,87.534,87.51,2.92815353]
[1773254935822,1.41253347,87.532,87.51,2.92815353]
[1773254937440,11.42426284,87.533,87.511,0.62086409]
[1773254937644,1.41253347,87.546,87.52,2.92815353]
[1773254937949,43.04081275,87.547,87.52,2.92815353]
[1773254937950,1.41253347,87.544,87.52,2.92815353]
[1773254939931,1.41253347,87.542,87.52,2.92815353]
[1773254940136,1.41253347,87.542,87.52,14.35403409]
[1773254940332,1.41253347,87.542,87.52,2.92815353]
[1773254940847,1.41253347,87.542,87.521,11.42582922]
[1773254941040,1.41253347,87.542,87.53,2.92815353]
[1773254941346,11.42251831,87.547,87.53,2.92815353]
[1773254941946,1.41253347,87.546,87.53,2.92815353]
[1773254946348,1.42751099,87.565,87.53,2.92815353]
[1773254946349,1.41253347,87.564,87.541,0.62152433]
[1773254946530,12.83196934,87.57,87.55,2.92815353]
[1773254946925,1.41253347,87.569,87.55,2.92815353]
[1773254947935,1.41253347,87.569,87.53,2.92815353]
[1773254947936,1.41253347,87.566,87.53,2.92815353]
[1773254948235,42.89617909,87.57,87.54,2.92815353]
[1773254948236,1.41253347,87.565,87.54,2.92815353]
[1773254948441,1.41253347,87.565,87.55,2.92815353]
[1773254948640,11.42021835,87.564,87.55,2.92815353]
[1773254948945,1.41253347,87.563,87.541,11.42318875]
[1773254949850,1.41253347,87.561,87.541,11.42318875]
[1773254951341,1.41253347,87.561,87.54,2.92815353]
[1773254951941,11.42074006,87.56,87.55,2.92815353]
[1773254952653,1.41253347,87.561,87.55,2.92815353]
[1773254952837,12.83270596,87.565,87.55,2.92815353]
[1773254953851,1.41253347,87.564,87.55,2.92815353]
[1773254954039,1.41253347,87.564,87.54,2.92815353]
[1773254955641,1.41253347,87.564,87.509,29.19045481]
[1773254955945,1.41253347,87.564,87.502,2.92]
[1773254955946,1.41253347,87.557,87.53,2.92815353]
[1773254958151,11.42126182,87.556,87.531,11.42452388]
[1773254958357,1.41253347,87.555,87.54,2.92815353]
[1773254958752,1.41253347,87.561,87.55,2.92815353]
[1773254958958,1.41253347,87.577,87.55,3.55051814]
[1773254959137,1.41253347,87.577,87.55,2.92815353]
[1773254960551,1.42877579,87.575,87.55,2.92815353]
[1773254962353,12.84769007,87.574,87.56,2.92815353]
[1773254962870,1.42877579,87.573,87.55,2.92815353]
[1773254964770,1.42877579,87.571,87.55,2.92815353]
[1773254965265,1.42877579,87.571,87.55,14.35012968]
[1773254965769,1.42877579,87.571,87.55,2.9215471]
[1773254965961,1.42877579,87.571,87.528,11.42491545]
[1773254966165,1.42877579,87.57,87.53,2.9215471]
[1773254966469,1.42877579,87.57,87.54,2.9215471]
[1773254967361,1.42877579,87.568,87.54,2.9215471]
[1773254969852,1.41780682,87.566,87.54,2.9215471]
[1773254972456,1.41780682,87.564,87.54,2.9215471]
[1773254972651,1.41780682,87.562,87.54,2.9215471]
[1773254973746,11.42060963,87.561,87.54,2.9215471]
[1773254973953,1.41780682,87.56,87.54,2.9215471]
[1773254974861,1.41780682,87.559,87.52,2.9215471]
[1773254975059,1.41780682,87.559,87.53,2.9215471]
[1773254976073,1.41780682,87.557,87.531,11.42452388]
[1773254976880,1.41780682,87.575,87.541,0.62338655]
[1773254977063,57.07727019,87.601,87.56,2.9215471]
[1773254977064,15.7567211,87.574,87.56,2.9215471]
[1773254977256,2.92,87.573,87.56,2.9215471]
[1773254977659,57.07727019,87.601,87.56,2.9215471]
[1773254977660,1.41780682,87.607,87.561,0.62343437]
[1773254977967,45.6373672,87.648,87.561,0.62343437]
[1773254977968,1.41780682,87.632,87.601,0.62348164]
[1773254978168,2.92,87.631,87.61,2.9215471]
[1773254978479,1.41780682,87.63,87.61,2.9215471]
[1773254978669,39.93655792,87.639,87.62,2.9215471]
[1773254978670,1.41780682,87.639,87.62,2.9215471]
[1773254978849,1.41780682,87.639,87.6,2.9215471]
[1773254978850,1.41780682,87.647,87.63,2.9215471]
[1773254979062,5.95876757,87.666,87.6,2.9215471]